bitfinex-derivatives/quotes_BNBF0:USTF0_20251203
["timestamp","ask_amount","ask_price","bid_price","bid_amount"]
[1764720491359,0.993,875.91,875.53,1.69648819]
[1764720491559,1.388,875.9,875.53,1.69648819]
[1764720492157,1.388,875.9,875.51,1.69648819]
[1764720492361,1.388,875.9,875.52,1.69648819]
[1764720493164,1.388,875.9,875.51,1.69648819]
[1764720493363,1.388,875.9,875.5,1.69648819]
[1764720493759,1.388,875.9,875.53,1.69648819]
[1764720494163,1.388,875.9,875.5,1.69648819]
[1764720495263,1.388,875.9,874.62,0.00956357]
[1764720495264,1.388,875.9,875.49,1.69648819]
[1764720496265,1.388,875.9,875.48,1.69648819]
[1764720497265,1.388,875.9,875.46,1.69648819]
[1764720498365,1.388,875.9,875.45,1.69648819]
[1764720498566,1.388,875.9,875.49,1.69648819]
[1764720498760,1.388,875.9,875.5,1.69648819]
[1764720498962,1.388,875.9,875.52,1.69648819]
[1764720499163,1.388,875.9,874.87,2.83844211]
[1764720499164,1.388,875.9,875.5,1.69648819]
[1764720500467,1.388,875.9,875.48,1.69648819]
[1764720501267,1.388,875.9,875.47,1.69648819]
[1764720501863,0.968,875.89,875.47,1.69648819]
[1764720502264,0.968,875.89,875.48,1.69648819]
[1764720502469,0.968,875.89,875.54,1.69648819]
[1764720503168,0.968,875.89,875.52,1.69648819]
[1764720503469,0.968,875.89,875.53,1.69648819]
[1764720503768,0.968,875.89,874.9,2.83844211]
[1764720503769,0.968,875.89,875.56,1.69648819]
[1764720504164,0.968,875.89,875.64,1.69648819]
[1764720504364,0.968,875.89,874.93,2.83844211]
[1764720504365,0.02482188,875.89,875.71,1.69648819]
[1764720505268,0.02482188,875.89,875.69,1.69648819]
[1764720505466,0.02482188,875.89,875.71,1.69648819]
[1764720505666,0.02482188,875.89,875.74,1.69648819]
[1764720506268,0.02482188,875.89,875.71,1.69648819]
[1764720506465,0.02482188,875.89,875.75,1.69648819]
[1764720506865,0.02482188,875.89,875.77,1.69648819]
[1764720507270,0.02482188,875.89,875.74,1.69648819]
[1764720507972,0.02482188,875.89,875.75,1.69648819]
[1764720508174,0.02482188,875.89,875.79,1.69648819]
[1764720508374,0.02482188,875.89,875.82,1.69648819]
[1764720509268,0.02482188,875.89,875.79,1.69648819]
[1764720509471,0.02482188,875.89,875.78,1.69648819]
[1764720510174,0.02482188,875.89,875.77,1.69648819]
[1764720511074,0.02482188,875.89,875.8,1.69648819]
[1764720511374,0.02482188,875.89,875.83,1.69648819]
[1764720512170,0.02482188,875.89,875.84,1.69648819]
[1764720512374,0.87670922,875.9,875.81,1.69648819]
[1764720512775,0.19847777,877.54,875.81,1.69648819]
[1764720513173,0.19847777,877.54,875.82,1.69648819]
[1764720513371,0.19847777,877.54,875.79,1.69648819]
[1764720514074,0.19847777,877.54,875.73,1.69648819]
[1764720514276,0.19847777,877.54,875.71,1.69648819]
[1764720514572,0.63825652,877.53,875.66,1.69648819]
[1764720514775,0.19847777,877.54,875.66,1.69648819]
[1764720514776,0.63825652,877.52,875.66,1.69648819]
[1764720514975,0.63825652,877.51,875.66,1.69648819]
[1764720515173,0.63825652,877.5,875.66,1.69648819]
[1764720515374,0.19847777,877.54,875.66,1.69648819]
[1764720515577,0.63823249,877.53,875.61,1.69648819]
[1764720515772,0.63823249,877.52,875.61,1.69648819]
[1764720515973,0.63823249,877.51,875.61,1.69648819]
[1764720516173,0.63823249,877.5,875.62,1.69648819]
[1764720516477,0.63823249,877.49,875.61,1.69648819]
[1764720516673,0.63823249,877.48,875.61,1.69648819]
[1764720516877,0.63823249,877.47,875.61,1.69648819]
[1764720517072,0.63823249,877.46,875.62,1.69648819]
[1764720517376,0.63823249,877.45,875.62,1.69648819]
[1764720517576,0.63823249,877.44,875.62,1.69648819]
[1764720517878,1.119,877.51,875.62,1.69648819]
[1764720518078,0.63828288,877.5,875.62,1.69648819]
[1764720518375,0.63828288,877.49,875.62,1.69648819]
[1764720518574,0.63828288,877.48,875.62,1.69648819]
[1764720518777,0.63828288,877.47,875.62,1.69648819]
[1764720518977,0.63828288,877.46,875.62,1.69648819]
[1764720519177,0.63828288,877.45,875.63,1.69648819]
[1764720519476,0.63828288,877.45,874.98,2.83844211]
[1764720519477,0.63828288,877.44,875.57,1.69648819]
[1764720519679,0.63828288,877.43,875.57,1.69648819]
[1764720519974,0.63828288,877.42,875.57,1.69648819]
[1764720520174,0.63828288,877.41,875.59,1.69648819]
[1764720520374,0.63828288,877.4,875.59,1.69648819]
[1764720520576,0.63828288,877.39,875.59,1.69648819]
[1764720520774,0.63828288,877.38,875.59,1.69648819]
[1764720520977,0.63828288,877.37,875.59,1.69648819]
[1764720521179,1.119,877.51,875.6,1.69648819]
[1764720521476,0.63832187,877.5,875.6,1.69648819]
[1764720521674,0.63832187,877.49,875.6,1.69648819]
[1764720521879,0.63832187,877.48,875.6,1.69648819]
[1764720522077,0.63832187,877.47,875.6,1.69648819]
[1764720522280,0.63832187,877.46,875.61,1.69648819]
[1764720522482,0.63832187,877.45,875.61,1.69648819]
[1764720522779,0.63832187,877.44,875.53,1.69648819]
[1764720522977,0.63832187,877.43,875.53,1.69648819]
[1764720523178,0.63832187,877.42,875.55,1.69648819]
[1764720523380,0.63832187,877.41,875.55,1.69648819]
[1764720523679,0.63832187,877.4,875.55,1.69648819]
[1764720523879,0.63832187,877.39,875.55,1.69648819]
[1764720524079,0.63832187,877.38,875.55,1.69648819]
[1764720524278,0.63832187,877.37,875.57,1.69648819]
[1764720524579,0.63832187,877.36,875.57,1.69648819]
[1764720524777,0.63832187,877.35,875.57,1.69648819]
[1764720524976,0.63832187,877.34,875.57,1.69648819]
[1764720525179,0.63832187,877.33,875.65,1.69648819]
[1764720525380,0.63832187,877.32,875.65,1.69648819]
[1764720525582,1.119,877.51,875.65,1.69648819]
[1764720525780,0.63941959,877.5,875.65,1.69648819]
[1764720525977,0.63941959,877.49,875.65,1.69648819]
[1764720526176,0.63941959,877.48,875.67,1.69648819]
[1764720526380,0.63941959,877.47,875.67,1.69648819]
[1764720526581,0.63941959,877.46,875.67,1.69648819]
[1764720526878,0.63941959,877.45,875.67,1.69648819]
[1764720527077,0.63941959,877.44,875.67,1.69648819]
[1764720527284,0.63941959,877.43,875.69,1.69648819]
[1764720527577,0.63941959,877.42,875.69,1.69648819]
[1764720527781,0.63941959,877.41,875.69,1.69648819]
[1764720528080,0.63941959,877.4,875.69,1.69648819]
[1764720528378,0.63941959,877.39,875.74,1.69648819]
[1764720528581,0.63941959,877.38,875.74,1.69648819]
[1764720528781,0.63941959,877.37,875.74,1.69648819]
[1764720528981,0.63941959,877.36,875.74,1.69648819]
[1764720529182,0.63941959,877.35,875.76,1.69648819]
[1764720529382,0.63941959,877.34,875.76,1.69648819]
[1764720529579,0.933,877.53,875.76,1.69648819]
[1764720529580,0.63941959,877.33,875.76,1.69648819]
[1764720529883,0.63941959,877.32,875.76,1.69648819]
[1764720530079,0.933,877.53,875.76,1.69648819]
[1764720530383,0.6404046,877.52,875.78,1.69648819]
[1764720531183,0.6404046,877.52,875.79,1.69648819]
[1764720531585,1.189,877.51,875.79,1.69648819]
[1764720531785,0.6404046,877.5,875.79,1.69648819]
[1764720532386,0.6404046,877.5,875.81,1.69648819]
[1764720533186,0.6404046,877.5,875.82,1.69648819]
[1764720533387,0.6404046,877.5,875.83,1.69648819]
[1764720534284,0.6404046,877.5,875.84,1.69648819]
[1764720535187,0.6404046,877.5,875.86,1.69648819]
[1764720536284,0.6404046,877.5,875.88,1.69648819]
[1764720537190,0.6404046,877.5,875.9,1.69648819]
[1764720537489,0.6404046,877.5,875.91,1.69648819]
[1764720538193,1.182,877.49,875.92,1.69648819]
[1764720538391,0.6404046,877.48,875.92,1.69648819]
[1764720539087,0.6404046,877.48,875.94,1.69648819]
[1764720541194,0.6404046,877.48,875.95,1.69648819]
[1764720541391,0.6404046,877.48,875.96,1.69648819]
[1764720543190,0.6404046,877.48,875.97,1.69648819]
[1764720543891,0.84439168,877.47,875.93,1.69648819]
[1764720544092,0.6404046,877.46,875.93,1.69648819]
[1764720544293,0.6404046,877.45,875.94,1.69648819]
[1764720544494,0.6404046,877.44,875.94,1.69648819]
[1764720544691,0.6404046,877.43,875.95,1.69648819]
[1764720544891,0.6404046,877.42,875.95,1.69648819]
[1764720545095,0.6404046,877.42,875.32,2.83844211]
[1764720545096,0.6404046,877.41,875.97,1.69648819]
[1764720545298,0.6404046,877.4,875.98,1.69648819]
[1764720545492,0.6404046,877.39,875.98,1.69648819]
[1764720545696,0.6404046,877.38,875.98,1.69648819]
[1764720545896,0.6404046,877.37,875.98,1.69648819]
[1764720546096,0.84439168,877.48,875.1,0.01052292]
[1764720546097,0.6404046,877.36,876.0,1.69648819]
[1764720546297,1.182,877.49,875.37,2.83844211]
[1764720546498,1.182,877.49,874.58,0.1984144]
[1764720547398,1.4883084,877.48,876.02,1.69728235]
[1764720547593,0.64344397,877.47,876.02,1.69728235]
[1764720547798,0.64344397,877.46,876.02,1.69728235]
[1764720547996,0.64344397,877.45,876.02,1.69728235]
[1764720548194,0.64344397,877.44,876.03,1.69728235]
[1764720548500,0.64344397,877.43,876.04,1.69728235]
[1764720548799,0.64344397,877.42,876.04,1.69728235]
[1764720548995,0.84486443,877.47,876.04,1.69728235]
[1764720548996,0.64344397,877.41,876.04,1.69728235]
[1764720549198,0.64344397,877.4,876.05,1.69728235]
[1764720549395,0.64344397,877.39,876.05,1.69728235]
[1764720549598,0.64344397,877.38,876.1,1.69728235]
[1764720549795,0.64344397,877.37,876.1,1.69728235]
[1764720550095,0.64344397,877.36,876.1,1.69728235]
[1764720550300,0.64344397,877.35,876.12,1.69728235]
[1764720550500,2.02686443,877.49,876.12,1.69728235]
[1764720550501,0.64344397,877.34,876.12,1.69728235]
[1764720550696,0.64344397,877.33,876.12,1.69728235]
[1764720550896,0.64344397,877.32,876.11,1.69728235]
[1764720551101,0.64344397,877.31,876.12,1.69728235]
[1764720551303,0.64344397,877.3,876.14,1.69728235]
[1764720551603,0.64344397,877.29,876.14,1.69728235]
[1764720551802,0.64344397,877.28,876.14,1.69728235]
[1764720551998,0.64344397,877.27,876.14,1.69728235]
[1764720552198,0.64344397,877.26,876.14,1.69728235]
[1764720552403,1.182,877.49,876.23,1.69728235]
[1764720552698,0.6439733,877.48,876.23,1.69728235]
[1764720552902,0.6439733,877.47,876.23,1.69728235]
[1764720553198,0.6439733,877.46,876.23,1.69728235]
[1764720553404,0.6439733,877.45,876.24,1.69728235]
[1764720553701,0.6439733,877.44,876.24,1.69728235]
[1764720553902,0.6439733,877.43,876.24,1.69728235]
[1764720554198,0.6439733,877.42,876.24,1.69728235]
[1764720554397,0.6439733,877.41,876.24,1.69728235]
[1764720554598,0.6439733,877.4,876.24,1.69728235]
[1764720554798,0.6439733,877.39,876.24,1.69728235]
[1764720555101,0.6439733,877.38,876.24,1.69728235]
[1764720555301,0.6439733,877.37,876.26,1.69728235]
[1764720555503,1.182,877.49,876.26,1.69728235]
[1764720555504,0.6439733,877.36,876.26,1.69728235]
[1764720555699,0.6439733,877.35,876.26,1.69728235]
[1764720556002,0.6439733,877.34,876.26,1.69728235]
[1764720556199,0.6439733,877.33,876.26,1.69728235]
[1764720556404,0.6439733,877.32,876.27,1.69728235]
[1764720556598,0.6439733,877.31,876.27,1.69728235]
[1764720556799,0.6439733,877.3,876.27,1.69728235]
[1764720557000,0.6439733,877.29,876.27,1.69728235]
[1764720557203,0.6439733,877.28,876.29,1.69728235]
[1764720557405,0.6439733,877.27,876.29,1.69728235]
[1764720557606,0.6439733,877.26,876.29,1.69728235]
[1764720557806,0.6439733,877.25,876.29,1.69728235]
[1764720558007,0.6439733,877.24,876.29,1.69728235]
[1764720558203,0.6439733,877.23,876.3,1.69728235]
[1764720558403,0.6439733,877.22,876.3,1.69728235]
[1764720558603,0.6439733,877.21,876.3,1.69728235]
[1764720558806,0.6439733,877.2,876.3,1.69728235]
[1764720559004,0.84486443,877.48,876.3,1.69728235]
[1764720559203,1.4896774,877.47,876.32,1.69728235]
[1764720559403,0.64481297,877.46,876.32,1.69728235]
[1764720559606,0.64481297,877.45,876.32,1.69728235]
[1764720559805,0.64481297,877.44,876.32,1.69728235]
[1764720560107,0.64481297,877.43,876.32,1.69728235]
[1764720560308,0.64481297,877.42,876.33,1.69728235]
[1764720560505,0.64481297,877.41,876.33,1.69728235]
[1764720560706,0.64481297,877.4,876.33,1.69728235]
[1764720560905,0.64481297,877.39,876.33,1.69728235]
[1764720561109,0.64481297,877.38,876.33,1.69728235]
[1764720561307,0.64481297,877.37,876.34,1.69728235]
[1764720561506,0.64481297,877.36,876.36,1.69728235]
[1764720561705,0.64481297,877.35,876.36,1.69728235]
[1764720561914,0.64481297,877.34,876.38,1.69728235]
[1764720562110,0.64481297,877.33,876.38,1.69728235]
[1764720562310,0.64481297,877.32,876.43,1.69728235]
[1764720562512,0.64481297,877.31,876.43,1.69728235]
[1764720562713,1.182,877.49,876.43,1.69728235]
[1764720562714,0.64481297,877.3,876.43,1.69728235]
[1764720562914,0.64481297,877.29,876.43,1.69728235]
[1764720563111,0.64481297,877.28,876.43,1.69728235]
[1764720563310,0.64481297,877.27,876.44,1.69728235]
[1764720563520,0.64481297,877.26,876.44,1.69728235]
[1764720563712,0.64481297,877.25,876.44,1.69728235]
[1764720563913,0.64481297,877.24,876.44,1.69728235]
[1764720564117,0.64481297,877.23,876.44,1.69728235]
[1764720564413,0.64481297,877.22,876.44,1.69728235]
[1764720564613,0.64481297,877.21,876.44,1.69728235]
[1764720564812,0.64481297,877.2,876.44,1.69728235]
[1764720565012,0.84486443,877.48,876.44,1.69728235]
[1764720565213,0.84486443,877.48,875.81,2.82880392]
[1764720565214,0.64587209,877.47,876.45,1.69728235]
[1764720565416,0.64587209,877.46,876.44,1.69728235]
[1764720565617,0.64587209,877.45,876.44,1.69728235]
[1764720565816,0.64587209,877.44,876.44,1.69728235]
[1764720566116,2.02686443,877.49,875.81,2.82880392]
[1764720566117,0.64587209,877.43,876.49,1.69728235]
[1764720566317,0.64587209,877.42,876.49,1.69728235]
[1764720566617,0.64587209,877.41,876.55,1.69728235]
[1764720566914,0.64587209,877.4,876.55,1.69728235]
[1764720567114,0.64587209,877.39,876.55,1.69728235]
[1764720567315,0.64587209,877.38,876.54,1.69728235]
[1764720567617,1.182,877.49,876.54,1.69728235]
[1764720567618,0.64587209,877.37,876.54,1.69728235]
[1764720567814,1.182,877.49,876.56,1.69728235]
[1764720568014,0.64574308,877.48,876.58,1.69728235]
[1764720568217,0.64574308,877.47,876.58,1.69728235]
[1764720568418,0.64574308,877.46,876.57,1.69728235]
[1764720568617,0.64574308,877.45,876.57,1.69728235]
[1764720568813,0.64574308,877.44,876.57,1.69728235]
[1764720569017,0.64574308,877.43,876.57,1.69728235]
[1764720569218,0.64574308,877.42,876.57,1.69728235]
[1764720569519,1.182,877.49,876.64,1.69728235]
[1764720569716,0.64547311,877.48,876.64,1.69728235]
[1764720569915,0.64547311,877.47,876.64,1.69728235]
[1764720570114,1.182,877.49,876.68,1.69728235]
[1764720570314,1.182,877.49,876.72,1.69728235]
[1764720571320,1.182,877.49,876.7,1.69728235]
[1764720572321,1.182,877.49,876.75,1.69728235]
[1764720573424,1.182,877.49,876.12,2.82880392]
[1764720573425,1.182,877.49,876.73,1.69728235]
[1764720573618,1.182,877.49,876.74,1.69728235]
[1764720573822,1.182,877.49,876.75,1.69728235]
[1764720574424,1.182,877.49,876.74,1.69728235]
[1764720575424,1.182,877.49,876.72,1.69728235]
[1764720576226,1.182,877.49,876.71,1.69728235]
[1764720576421,1.182,877.49,876.7,1.69728235]
[1764720576622,1.182,877.49,876.8,1.69728235]
[1764720577022,1.182,877.49,876.83,1.69728235]
[1764720577427,1.182,877.49,876.82,1.69728235]
[1764720577624,1.182,877.49,876.89,1.69728235]
[1764720577825,1.182,877.49,876.94,1.69728235]
[1764720578022,1.182,877.49,877.12,1.69728235]
[1764720578227,1.182,877.49,877.06,1.69728235]
[1764720578529,1.182,877.49,877.09,1.69728235]
[1764720578726,1.182,877.49,877.1,1.69728235]
[1764720579026,1.182,877.49,877.14,1.69728235]
[1764720579227,1.182,877.49,877.15,1.69728235]
[1764720579428,1.182,877.49,877.14,1.69728235]
[1764720579628,1.182,877.49,877.15,1.69728235]
[1764720579927,1.182,877.49,877.16,1.69728235]
[1764720580226,1.189,877.51,877.16,1.69728235]
[1764720580427,1.189,877.51,877.21,1.69728235]
[1764720580727,1.189,877.51,877.2,1.69728235]
[1764720580928,1.189,877.51,877.38,1.1261717]
[1764720581226,1.189,877.51,876.26,3.96032549]
[1764720581227,1.189,877.51,877.39,1.1261717]
[1764720581427,1.189,877.51,877.33,1.1261717]
[1764720581822,1.189,877.51,877.32,1.1261717]
[1764720582226,1.189,877.51,877.3,1.1261717]
[1764720582527,1.189,877.51,877.25,1.1261717]
[1764720583026,1.189,877.51,877.26,1.1261717]
[1764720583224,1.189,877.51,877.27,1.1261717]
[1764720583427,1.189,877.51,876.48,2.82880392]
[1764720583428,1.189,877.51,877.22,1.1261717]
[1764720583927,1.189,877.51,877.21,1.1261717]
[1764720584127,1.189,877.51,877.22,1.1261717]
[1764720584327,1.189,877.51,877.17,1.1261717]
[1764720584529,1.189,877.51,877.16,1.1261717]
[1764720584924,1.189,877.51,877.17,1.1261717]
[1764720585427,1.189,877.51,877.13,1.1261717]
[1764720585624,1.189,877.51,877.14,1.1261717]
[1764720586324,1.189,877.51,877.1,1.1261717]
[1764720586724,1.189,877.51,877.16,1.1261717]
[1764720587426,1.189,877.51,877.12,1.1261717]
[1764720587629,1.189,877.51,877.15,1.1261717]
[1764720588030,1.189,877.51,877.16,1.1261717]
[1764720588231,1.189,877.51,877.15,1.1261717]
[1764720588530,0.936,878.0,877.13,1.1261717]
[1764720588724,0.936,878.0,877.15,1.1261717]
[1764720589328,0.936,878.0,877.11,1.1261717]
[1764720590229,0.936,878.0,877.07,1.1261717]
[1764720591436,0.901,877.99,877.04,1.1261717]
[1764720592137,0.901,877.99,877.08,1.1261717]
[1764720592334,0.901,877.99,877.05,1.1261717]
[1764720592733,0.901,877.99,877.07,1.1261717]
[1764720593437,0.901,877.99,877.04,1.1261717]
[1764720593938,0.901,877.99,876.88,1.69728235]
[1764720593939,0.901,877.99,877.07,1.1261717]
[1764720594147,0.901,877.99,877.45,1.1261717]
[1764720594439,0.901,877.99,877.29,1.1261717]
[1764720594634,0.901,877.99,877.28,1.1261717]
[1764720595134,0.901,877.99,877.31,1.1261717]
[1764720595435,0.901,877.99,877.27,1.1261717]
[1764720595839,0.901,877.99,877.36,1.1261717]
[1764720596341,0.901,877.99,877.3,1.1261717]
[1764720596539,0.901,877.99,876.24,3.96032549]
[1764720596540,0.901,877.99,877.34,1.1261717]
[1764720597336,0.901,877.99,877.3,1.1261717]
[1764720598337,0.901,877.99,877.26,1.1261717]
[1764720598841,0.901,877.99,877.25,1.1261717]
[1764720599239,0.901,877.99,876.99,1.1261717]
[1764720599438,0.901,877.99,877.0,1.1261717]
[1764720600642,0.901,877.99,876.84,1.69728235]
[1764720600643,0.901,877.99,876.99,1.1261717]
[1764720601038,0.901,877.99,877.0,1.1261717]
[1764720601442,0.901,877.99,876.99,1.1261717]
[1764720602247,0.901,877.99,876.98,1.1261717]
[1764720602448,1.348,877.98,876.98,1.1261717]
[1764720602948,1.348,877.98,876.97,1.1261717]
[1764720603248,1.348,877.98,876.96,1.1261717]
[1764720604152,1.348,877.98,876.95,1.1261717]
[1764720604358,1.348,877.98,876.96,1.1261717]
[1764720604751,1.348,877.98,876.95,1.1261717]
[1764720605051,1.348,877.98,876.9,1.1261717]
[1764720606146,1.348,877.98,876.89,1.1261717]
[1764720606349,1.348,877.98,876.9,1.1261717]
[1764720607348,1.348,877.98,876.91,1.1261717]
[1764720608251,1.348,877.98,876.9,1.1261717]
[1764720608452,1.348,877.98,876.91,1.1261717]
[1764720609251,1.348,877.98,876.92,1.1261717]
[1764720610451,1.348,877.98,876.93,1.1261717]
[1764720610750,1.348,877.98,876.94,1.1261717]
[1764720610951,1.144,877.97,876.97,1.1261717]
[1764720611351,1.144,877.97,876.98,1.1261717]
[1764720612353,1.144,877.97,877.0,1.1261717]
[1764720613054,1.144,877.97,876.99,1.1261717]
[1764720613353,1.144,877.97,877.01,1.1261717]
[1764720614452,1.144,877.97,877.03,1.1261717]
[1764720615251,1.144,877.97,877.05,1.1261717]
[1764720616355,1.144,877.97,877.07,1.1261717]
[1764720616856,1.144,877.97,877.12,1.1261717]
[1764720617352,1.144,877.97,877.14,1.1261717]
[1764720617556,1.144,877.97,877.12,1.1261717]
[1764720617856,1.144,877.97,877.13,1.1261717]
[1764720618553,1.144,877.97,877.15,1.1261717]
[1764720619257,1.144,877.97,877.18,1.1261717]
[1764720620355,1.144,877.97,877.21,1.1261717]
[1764720621159,1.144,877.97,877.22,1.1261717]
[1764720621360,1.144,877.97,877.25,1.1261717]
[1764720622364,1.144,877.97,877.28,1.1261717]
[1764720622864,1.348,877.98,877.28,1.1261717]
[1764720623172,1.348,877.98,877.29,1.1261717]
[1764720623363,1.348,877.98,877.33,1.1261717]
[1764720623564,1.348,877.98,877.32,1.1261717]
[1764720623864,1.348,877.98,877.33,1.1261717]
[1764720624265,1.348,877.98,877.37,1.1261717]
[1764720624466,1.348,877.98,877.36,1.1261717]
[1764720625165,1.348,877.98,877.37,1.1261717]
[1764720625366,1.348,877.98,877.41,1.1261717]
[1764720625866,0.01024022,878.88,877.42,1.1261717]
[1764720626066,0.19807785,879.35,877.41,1.1261717]
[1764720626268,0.19807785,879.35,877.45,1.1261717]
[1764720626976,1.107,879.34,877.45,1.1261717]
[1764720627269,1.107,879.34,877.46,1.1261717]
[1764720627470,1.107,879.34,877.5,1.1261717]
[1764720628070,1.117,879.33,877.51,1.1261717]
[1764720628464,1.117,879.33,877.55,1.1261717]
[1764720629470,1.117,879.33,877.61,1.1261717]
[1764720630266,1.117,879.33,877.63,1.1261717]
[1764720630572,1.117,879.33,877.68,1.1261717]
[1764720630870,1.117,879.33,877.83,1.1261717]
[1764720631170,1.117,879.33,877.85,1.1261717]
[1764720631369,1.117,879.33,877.93,1.1261717]
[1764720631665,1.117,879.33,877.77,1.69728235]
[1764720631666,1.117,879.33,877.94,1.1261717]
[1764720632370,1.117,879.33,878.01,1.1261717]
[1764720632568,1.117,879.33,878.03,1.1261717]
[1764720633566,1.117,879.33,878.17,1.1261717]
[1764720633767,1.117,879.33,878.16,1.1261717]
[1764720634266,1.117,879.33,878.19,1.1261717]
[1764720634472,1.117,879.33,878.24,1.1261717]
[1764720635170,1.117,879.33,878.23,1.1261717]
[1764720635467,1.117,879.33,878.29,1.1261717]
[1764720635969,1.117,879.33,878.16,1.1261717]
[1764720636166,1.117,879.33,878.14,1.1261717]
[1764720636470,1.117,879.33,878.21,1.1261717]
[1764720636665,1.117,879.33,878.18,1.1261717]
[1764720636866,1.117,879.33,878.11,1.1261717]
[1764720637065,1.117,879.33,878.1,1.1261717]
[1764720637265,1.117,879.33,878.14,1.1261717]
[1764720638267,1.117,879.33,878.15,1.1261717]
[1764720638472,1.117,879.33,878.17,1.1261717]
[1764720639372,1.117,879.33,878.18,1.1261717]
[1764720640271,1.117,879.33,878.2,1.1261717]
[1764720640875,1.117,879.33,878.19,1.1261717]
[1764720641370,1.117,879.33,878.18,1.1261717]
[1764720642277,1.117,879.33,878.16,1.1261717]
[1764720642476,0.84518527,879.32,878.13,1.1261717]
[1764720643372,0.84518527,879.31,878.14,1.1261717]
[1764720643871,0.84518527,879.32,878.15,1.1261717]
[1764720644271,1.117,879.33,878.15,1.1261717]
[1764720644471,0.84626895,879.32,878.17,1.1261717]
[1764720644771,0.84626895,879.32,878.02,1.69728235]
[1764720644772,0.84626895,879.32,878.18,1.1261717]
[1764720645072,0.84626895,879.32,878.17,1.1261717]
[1764720645278,0.84626895,879.32,878.18,1.1261717]
[1764720645577,0.84626895,879.31,878.19,1.1261717]
[1764720646176,0.84626895,879.3,878.19,1.1261717]
[1764720646377,0.84626895,879.29,878.2,1.1261717]
[1764720647278,0.84626895,879.28,878.21,1.1261717]
[1764720647474,0.84626895,879.26,878.19,1.1261717]
[1764720648575,0.84626895,879.25,878.2,1.1261717]
[1764720649382,0.84626895,879.24,878.21,1.1261717]
[1764720649680,0.84626895,879.23,878.2,1.1261717]
[1764720650276,0.84626895,879.23,878.21,1.1261717]
[1764720651282,0.84626895,879.22,878.22,1.1261717]
[1764720651676,0.84626895,879.19,878.18,1.1261717]
[1764720652084,0.84626895,879.16,878.16,1.1261717]
[1764720652284,0.84626895,879.1,878.11,1.1261717]
[1764720653384,0.84626895,879.09,878.12,1.1261717]
[1764720657389,0.84626895,879.08,878.12,1.1261717]
[1764720658288,0.84626895,879.08,878.13,1.1261717]
[1764720661188,0.84626895,879.08,878.12,1.1261717]
[1764720666388,2.10726895,879.15,878.19,1.1261717]
[1764720666591,2.10726895,879.15,878.03,1.69728235]
[1764720666592,1.261,879.15,878.26,1.1261717]
[1764720667487,0.84626895,879.21,878.26,1.1261717]
[1764720670291,1.135,879.2,878.26,1.1261717]
[1764720670692,1.135,879.2,878.27,1.1261717]
[1764720670889,1.135,879.2,878.33,1.1261717]
[1764720671094,1.135,879.2,878.32,1.1261717]
[1764720673090,1.135,879.2,878.31,1.1261717]
[1764720673491,0.84626895,879.14,878.2,1.1261717]
[1764720673692,0.84626895,879.11,878.17,1.1261717]
[1764720673997,0.84626895,879.1,878.16,1.1261717]
[1764720674396,0.84626895,879.07,878.13,1.1261717]
[1764720675192,0.84626895,879.06,878.12,1.1261717]
[1764720679197,0.84626895,879.06,878.11,1.1261717]
[1764720681396,0.84626895,879.07,878.12,1.1261717]
[1764720681798,0.84626895,879.06,878.11,1.1261717]
[1764720683898,0.84626895,879.07,878.12,1.1261717]
[1764720684401,0.936,879.16,878.15,1.1261717]
[1764720684402,0.84626895,879.1,878.15,1.1261717]
[1764720685804,0.84626895,879.09,878.14,1.1261717]
[1764720685998,0.84626895,879.09,877.04,3.96032549]
[1764720685999,0.84626895,879.08,878.13,1.1261717]
[1764720686503,0.84626895,879.01,878.06,1.1261717]
[1764720686705,0.84626895,878.98,878.03,1.1261717]
[1764720687105,0.84626895,878.91,877.96,1.1261717]
[1764720687308,0.84626895,878.91,877.2,2.82880392]
[1764720687309,0.84626895,878.93,877.97,1.1261717]
[1764720688408,0.84626895,878.93,877.96,1.1261717]
[1764720688608,0.84626895,878.92,877.95,1.1261717]
[1764720688808,0.84626895,878.93,877.96,1.1261717]
[1764720689108,0.84626895,878.92,877.95,1.1261717]
[1764720689407,0.84626895,878.94,877.95,1.1261717]
[1764720690406,0.84626895,878.91,877.91,1.1261717]
[1764720690607,0.84626895,878.84,877.84,1.1261717]
[1764720690809,0.84626895,878.77,877.77,1.1261717]
[1764720691008,0.84626895,878.78,877.78,1.1261717]
[1764720691408,0.84626895,878.79,877.77,1.1261717]
[1764720692413,0.84626895,878.8,877.76,1.1261717]